fUSD/lending_fUSD_20250422
["ID","MTS","AMOUNT","RATE_DAILY","PERIOD"]
[358656588,1745340631869,-257.34662494,0.00022818,2]
[358656590,1745340631885,-300.0,0.00023,2]
[358656592,1745340631900,-4457.62987221,0.00023659,4]
[358656595,1745340631915,-8443.98,0.00024174,2]
[358656597,1745340631930,-11070.48,0.00024174,2]
[358656600,1745340631945,-150.99,0.00024174,2]
[358656603,1745340631960,-499.99,0.00024174,2]
[358656605,1745340631976,-350.0,0.00025,2]
[358656608,1745340631990,-4457.62987221,0.00025038,5]
[358656610,1745340632005,-299.5,0.00025551,2]
[358656612,1745340632021,-257.34662494,0.00025835,2]
[358656616,1745340632035,-4457.62987221,0.00026417,6]
[358656620,1745340632050,-250.0,0.00026775,2]
[358656624,1745340632066,-400.0,0.00027,2]
[358656627,1745340632081,-4457.62987221,0.00027797,7]
[358656629,1745340632097,-4457.62987221,0.00029176,8]
[358656632,1745340632113,-4457.62987221,0.00030555,9]
[358656635,1745340632128,-483.34,0.00031683,2]
[358656637,1745340632143,-4457.62987221,0.00031934,10]
[358656640,1745340632158,-250.0,0.00031944,2]
[358656642,1745340632174,-437.56,0.00032904,30]
[358656645,1745340632189,-274.59,0.00033293,2]
[358656648,1745340632204,-4457.62987221,0.00033314,11]
[358656650,1745340632216,-200.0,0.00033764,2]
[358656652,1745340632226,-876.0,0.00033837,2]
[358656654,1745340632235,-247.973,0.00033837,2]
[358656656,1745340632245,-1000.0,0.00034008,2]
[358656658,1745340632255,-193.33,0.00034089,120]
[358656660,1745340632265,-6058.77,0.00034164,2]
[358656662,1745340632275,-3056.32,0.0003437,2]
[358656664,1745340632284,-1015.58,0.000344,2]
[358656665,1745340632294,-150.0,0.00034548,10]
[358656667,1745340632304,-4457.62987221,0.00034693,12]
[358656669,1745340632314,-2975.8337617,0.00035,2]
[358656671,1745340632323,-4457.62987221,0.00036072,13]
[358656672,1745340632333,-876.0,0.00036837,2]
[358656701,1745340632343,-4990.3713518,0.00037,2]
[358656707,1745340632745,-34271.1693,0.00037032,2]
[358656710,1745340632765,-3696.83434404,0.00037068,2]
[358656712,1745340632775,-23900.0,0.00037132,2]
[358656713,1745340632785,-9163.16,0.00037168,2]
[358656715,1745340632796,-243.78506816,0.000372,120]
[358656717,1745340632806,-12910.18,0.00037415,2]
[358656719,1745340632815,-4457.62987221,0.00037452,13]
[358656720,1745340632825,-585.89780411,0.00038142,45]
[358656722,1745340632836,-166.66,0.00038242,2]
[358656724,1745340632845,-1000.0,0.00038259,2]
[358656726,1745340632855,-193.33,0.0003835,120]
[358656728,1745340632865,-170.201,0.00038668,52]
[358656729,1745340632874,-1320.888,0.00038668,52]
[358656731,1745340632884,-461.31,0.00038811,2]
[358656733,1745340632893,-4457.62987221,0.00038831,14]
[358656735,1745340632904,-3696.834344,0.00039027,2]
[358656736,1745340632914,-500.0,0.00039726,15]
[358656738,1745340632923,-500.0,0.00039726,15]
[358656740,1745340632933,-500.0,0.00039726,15]
[358656742,1745340632944,-500.0,0.00039726,15]
[358656744,1745340632954,-500.0,0.00039726,15]
[358656746,1745340632965,-500.0,0.00039726,15]
[358656748,1745340632974,-500.0,0.00039726,15]
[358656749,1745340632984,-500.0,0.00039726,15]
[358656751,1745340632993,-500.0,0.00039726,15]
[358656753,1745340633004,-500.0,0.00039726,15]
[358656755,1745340633015,-500.0,0.00039726,15]
[358656757,1745340633027,-500.0,0.00039726,15]
[358656759,1745340633039,-500.0,0.00039726,15]
[358656761,1745340633050,-500.0,0.00039726,15]
[358656762,1745340633061,-500.0,0.00039726,15]
[358656764,1745340633071,-500.0,0.00039726,15]
[358656766,1745340633082,-500.0,0.00039726,15]
[358656768,1745340633093,-500.0,0.00039726,15]
[358656770,1745340633104,-500.0,0.00039726,15]
[358656771,1745340633115,-598.09453619,0.00039726,15]
[358656773,1745340633127,-500.0,0.00039726,15]
[358656775,1745340633138,-500.0,0.00039726,15]
[358656777,1745340633149,-500.0,0.00039726,15]
[358656779,1745340633161,-500.0,0.00039726,15]
[358656781,1745340633172,-500.0,0.00039726,15]
[358656783,1745340633182,-500.0,0.00039726,15]
[358656784,1745340633192,-500.0,0.00039726,15]
[358656786,1745340633203,-500.0,0.00039726,15]
[358656788,1745340633213,-500.0,0.00039726,15]
[358656790,1745340633223,-500.0,0.00039726,15]
[358656792,1745340633233,-500.0,0.00039726,15]
[358656794,1745340633244,-500.0,0.00039726,15]
[358656796,1745340633254,-500.0,0.00039726,15]
[358656798,1745340633265,-500.0,0.00039726,15]
[358656800,1745340633277,-500.0,0.00039726,15]
[358656801,1745340633286,-500.0,0.00039726,15]
[358656803,1745340633296,-500.0,0.00039726,15]
[358656805,1745340633306,-500.0,0.00039726,15]
[358656806,1745340633316,-500.0,0.00039726,15]
[358656808,1745340633327,-500.0,0.00039726,15]
[358656810,1745340633336,-879.225776,0.00039726,15]
[358656812,1745340633346,-879.225776,0.00039726,15]
[358656814,1745340633356,-879.225776,0.00039726,15]
[358656815,1745340633366,-879.225776,0.00039726,15]
[358656817,1745340633377,-879.225776,0.00039726,15]
[358656819,1745340633387,-879.225776,0.00039726,15]
[358656821,1745340633400,-879.225776,0.00039726,15]
[358656823,1745340633410,-879.225776,0.00039726,15]
[358656824,1745340633422,-879.225776,0.00039726,15]
[358656826,1745340633432,-879.225776,0.00039726,15]
[358656827,1745340633443,-879.225776,0.00039726,15]
[358656828,1745340633454,-879.225776,0.00039726,15]
[358656829,1745340633465,-879.225776,0.00039726,15]
[358656830,1745340633476,-879.225776,0.00039726,15]
[358656831,1745340633488,-879.225776,0.00039726,15]
[358656832,1745340633500,-879.225776,0.00039726,15]
[358656833,1745340633511,-879.225776,0.00039726,15]
[358656834,1745340633524,-879.225776,0.00039726,15]
[358656835,1745340633535,-879.225776,0.00039726,15]
[358656836,1745340633546,-879.225776,0.00039726,15]
[358656837,1745340633559,-879.225776,0.00039726,15]
[358656838,1745340633569,-879.225776,0.00039726,15]
[358656839,1745340633581,-879.225776,0.00039726,15]
[358656840,1745340633592,-879.225776,0.00039726,15]
[358656841,1745340633602,-879.225776,0.00039726,15]
[358656842,1745340633613,-879.225776,0.00039726,15]
[358656843,1745340633625,-879.225776,0.00039726,15]
[358656844,1745340633635,-879.225776,0.00039726,15]
[358656845,1745340633646,-879.225776,0.00039726,15]
[358656846,1745340633657,-879.225776,0.00039726,15]
[358656847,1745340633667,-879.225776,0.00039726,15]
[358656848,1745340633678,-879.225776,0.00039726,15]
[358656849,1745340633689,-879.225776,0.00039726,15]
[358656850,1745340633699,-879.225776,0.00039726,15]
[358656851,1745340633710,-879.225776,0.00039726,15]
[358656852,1745340633720,-879.225776,0.00039726,15]
[358656853,1745340633731,-879.225776,0.00039726,15]
[358656854,1745340633742,-879.225776,0.00039726,15]
[358656855,1745340633754,-879.225776,0.00039726,15]
[358656856,1745340633766,-879.225776,0.00039726,15]
[358656857,1745340633778,-879.225776,0.00039726,15]
[358656858,1745340633789,-879.225776,0.00039726,15]
[358656859,1745340633800,-879.225776,0.00039726,15]
[358656860,1745340633810,-879.225776,0.00039726,15]
[358656861,1745340633821,-879.225776,0.00039726,15]
[358656862,1745340633832,-879.225776,0.00039726,15]
[358656863,1745340633843,-879.225776,0.00039726,15]
[358656864,1745340633854,-879.225776,0.00039726,15]
[358656865,1745340633866,-879.225776,0.00039726,15]
[358656866,1745340633876,-459.27150142,0.000398,5]
[358656867,1745340633886,-166.96743882,0.000398,5]
[358656868,1745340633898,-500.0,0.000398,5]
[358656869,1745340633931,-572.61337729,0.000398,2]
[358656870,1745340633943,-500.42187162,0.000398,5]
[358656871,1745340633955,-158.43565893,0.000398,5]
[358656872,1745340633966,-500.0,0.000398,2]
[358656873,1745340633979,-161.1858119,0.000398,5]
[358656874,1745340633991,-500.0,0.000398,5]
[358656875,1745340634002,-500.0,0.000398,5]
[358656876,1745340634013,-280.62067186,0.000398,5]
[358656877,1745340634028,-162.22541034,0.000398,5]
[358656878,1745340634040,-169.43674588,0.000398,5]
[358656879,1745340634053,-162.95,0.0004,30]
[358656880,1745340634064,-4457.62987221,0.0004021,15]
[358656881,1745340634076,-3696.834344,0.00040986,15]
[358656882,1745340634088,-461.31,0.00041075,2]
[358656883,1745340634099,-252.65,0.00041095,120]
[358656884,1745340634110,-4457.62987221,0.0004159,16]
[358656885,1745340634121,-437.56,0.00041619,30]
[358656886,1745340634133,-252.65,0.00042465,120]
[358656887,1745340634144,-1000.0,0.0004251,2]
[358656888,1745340634156,-193.33,0.00042611,120]
[358656889,1745340634167,-235.42558722,0.00042869,28]
[358656890,1745340634178,-3696.834344,0.00042945,15]
[358656891,1745340634188,-4457.62987221,0.00042969,17]
[358656892,1745340634199,-968.17612,0.00043,120]
[358656893,1745340634209,-461.31,0.00043339,2]
[358656894,1745340634220,-252.65,0.00043835,120]
[358656895,1745340634231,-4457.62987221,0.00044348,18]
[358656896,1745340634242,-483.34,0.00044356,2]
[358656897,1745340634253,-274.59,0.00044526,2]
[358656898,1745340634264,-3696.834344,0.00044904,15]
[358656899,1745340634276,-252.65,0.00045205,120]
[358656900,1745340634286,-461.31,0.00045602,2]
[358656901,1745340634298,-250.0,0.00045605,7]
[358656902,1745340634310,-4457.62987221,0.00045728,19]
[358656903,1745340634323,-252.65,0.00046575,120]
[358656904,1745340634334,-2000.0,0.00046575,2]
[358656905,1745340634346,-2000.0,0.00046575,2]
[358656906,1745340634356,-2000.0,0.00046575,2]
[358656907,1745340634367,-2000.0,0.00046575,2]
[358656908,1745340634379,-2000.0,0.00046575,2]
[358656909,1745340634389,-2000.0,0.00046575,2]
[358656910,1745340634400,-2000.0,0.00046575,2]
[358656911,1745340634413,-1000.0,0.00046761,2]
[358656912,1745340634425,-3696.834344,0.00046864,15]
[358656913,1745340634436,-193.33,0.00046872,120]
[358656914,1745340634446,-655.16,0.0004697,2]
[358656915,1745340634457,-3744.9937517,0.00047018,15]
[358656916,1745340634468,-1650.33890658,0.00047018,19]
[358656917,1745340634479,-8328.8794,0.00047056,2]
[358656918,1745340634491,-4457.62987221,0.00047107,20]
[358656919,1745340634506,-150.38,0.00047108,2]
[358656920,1745340634516,-159.54320544,0.00047117,120]
[358656921,1745340634527,-358.99677129,0.00047117,31]
[358656922,1745340634539,-203.00264463,0.00047117,120]
[358656923,1745340634550,-500.0,0.00047117,120]
[358656924,1745340634560,-500.0,0.00047117,120]
[358656925,1745340634571,-500.0,0.00047117,120]
[358656926,1745340634582,-379.56644854,0.00047117,120]
[358656927,1745340634592,-500.0,0.00047117,120]
[358656928,1745340634602,-500.0,0.00047117,120]
[358656929,1745340634613,-500.0,0.00047117,120]
[358656930,1745340634623,-500.0,0.00047117,120]
[358656931,1745340634634,-250.0,0.00047117,120]
[358656932,1745340634644,-287852.31711158,0.00047118,30]
[358656933,1745340634654,-1100.0,0.00047118,30]
[358656934,1745340634664,-1201.75,0.000478,2]
[358656935,1745340634675,-461.31,0.00047866,2]
[358656936,1745340634684,-3744.99375162,0.00047872,15]
[358656937,1745340634694,-252.65,0.00047945,120]
[358656938,1745340634704,-237.28,0.000486,45]
[358656939,1745340634714,-237.28,0.000486,45]
[358656940,1745340634724,-237.28,0.000486,45]
[358656941,1745340634734,-237.28,0.000486,45]
[358656942,1745340634744,-237.28,0.000486,45]
[358656943,1745340634754,-237.28,0.000486,45]
[358656944,1745340634763,-237.28,0.000486,45]
[358656945,1745340634774,-237.28,0.000486,45]
[358656946,1745340634783,-237.28,0.000486,45]
[358656947,1745340634793,-237.28,0.000486,45]
[358656948,1745340634804,-237.28,0.000486,45]
[358656949,1745340634813,-237.28,0.000486,45]
[358656950,1745340634823,-3744.99375162,0.00048725,15]
[358656951,1745340634832,-2000.0,0.00048749,120]
[358656952,1745340634842,-200.0,0.00048749,120]
[358656953,1745340634851,-3696.834344,0.00048823,15]
[358656954,1745340634861,-160.15848003,0.00048989,2]
[358656955,1745340634871,-30000.0,0.00049,120]
[358656956,1745340634881,-252.65,0.00049315,120]
[358656957,1745340634891,-500.0,0.00049315,3]
[358656958,1745340634922,-256.75651797,0.0004939,27]
[358656959,1745340634931,-5000.0,0.0004939,120]
[358656960,1745340634941,-167.02112766,0.000494,36]
[358656961,1745340634951,-150.38,0.0004947,120]
[358656962,1745340634960,-500.0,0.00049473,10]
[358656963,1745340634970,-514.64127501,0.00049473,5]
[358656964,1745340634979,-56229.8308727,0.0004948,4]
[358656965,1745340634989,-86222.92414711,0.0004949,4]
[358656966,1745340635401,-574.6,0.0004949,4]
[358656974,1745340637971,-4457.62987221,0.00048486,21]
[358656976,1745340637981,-39719.59531689,0.0004949,4]
[358656978,1745340637992,-150.38,0.0004949,120]
[358656980,1745340638001,-150.38,0.0004949,120]
[358656982,1745340638010,-184.693628,0.000495,120]
[358656983,1745340638020,-184.693628,0.000495,120]
[358656985,1745340638029,-183.984739,0.000495,120]
[358656987,1745340638039,-183.984739,0.000495,120]
[358656989,1745340638049,-100000.0,0.000495,60]
[358656991,1745340638058,-155446.57802558,0.000495,60]
[358656993,1745340638068,-28114.9154364,0.00049559,4]
[358656995,1745340638077,-14057.4577182,0.00049569,4]
[358656996,1745340638088,-3744.99375162,0.00049579,15]
[358656998,1745340638098,-28114.9154364,0.00049579,4]
[358657000,1745340638108,-1000.0,0.00049589,9]
[358657002,1745340638118,-1000.0,0.00049589,9]
[358657004,1745340638127,-1000.0,0.00049589,9]
[358657006,1745340638137,-1000.0,0.00049589,9]
[358657008,1745340638147,-1000.0,0.00049589,9]
[358657009,1745340638156,-1000.0,0.00049589,9]
[358657011,1745340638166,-1000.0,0.00049589,9]
[358657013,1745340638177,-1000.0,0.00049589,9]
[358657015,1745340638187,-1000.0,0.00049589,9]
[358657017,1745340638198,-1000.0,0.00049589,9]
[358657018,1745340638208,-1000.0,0.00049589,9]
[358657020,1745340638218,-1000.0,0.00049589,9]
[358657022,1745340638230,-1000.0,0.00049589,9]
[358657025,1745340638239,-1000.0,0.00049589,9]
[358657028,1745340638249,-1000.0,0.00049589,9]
[358657030,1745340638258,-1000.0,0.00049589,9]
[358657032,1745340638269,-1000.0,0.00049589,9]
[358657034,1745340638279,-1000.0,0.00049589,9]
[358657036,1745340638289,-1000.0,0.00049589,9]
[358657038,1745340638298,-1000.0,0.00049589,9]
[358657039,1745340638307,-1000.0,0.00049589,9]
[358657040,1745340638317,-1000.0,0.00049589,9]
[358657041,1745340638326,-1000.0,0.00049589,9]
[358657042,1745340638336,-1000.0,0.00049589,9]
[358657043,1745340638345,-1000.0,0.00049589,9]
[358657044,1745340638355,-1000.0,0.00049589,9]
[358657045,1745340638364,-1000.0,0.00049589,9]
[358657046,1745340638374,-1000.0,0.00049589,9]
[358657047,1745340638384,-1000.0,0.00049589,9]
[358657048,1745340638393,-353.0,0.00049589,60]
[358657049,1745340638402,-353.0,0.00049589,60]
[358657050,1745340638412,-353.0,0.00049589,60]
[358657051,1745340638422,-353.0,0.00049589,60]
[358657052,1745340638433,-353.0,0.00049589,60]
[358657053,1745340638443,-353.0,0.00049589,60]
[358657054,1745340638452,-353.0,0.00049589,60]
[358657055,1745340638461,-353.0,0.00049589,60]
[358657056,1745340638472,-353.0,0.00049589,60]
[358657057,1745340638481,-353.0,0.00049589,60]
[358657058,1745340638496,-353.0,0.00049589,60]
[358657059,1745340638506,-353.0,0.00049589,60]
[358657061,1745340638515,-353.0,0.00049589,60]
[358657063,1745340638526,-196.0,0.00049589,60]
[358657065,1745340638537,-196.0,0.00049589,60]
[358657067,1745340638547,-196.0,0.00049589,60]
[358657069,1745340638556,-196.0,0.00049589,60]
[358657071,1745340638566,-196.0,0.00049589,60]
[358657073,1745340638576,-196.0,0.00049589,60]
[358657075,1745340638586,-196.0,0.00049589,60]
[358657077,1745340638595,-196.0,0.00049589,60]
[358657079,1745340638604,-196.0,0.00049589,60]
[358657081,1745340638614,-196.0,0.00049589,60]
[358657083,1745340638623,-196.0,0.00049589,60]
[358657085,1745340638632,-196.0,0.00049589,60]
[358657087,1745340638641,-196.0,0.00049589,60]
[358657089,1745340638651,-353.0,0.00049589,60]
[358657091,1745340638660,-353.0,0.00049589,60]
[358657093,1745340638669,-353.0,0.00049589,60]
[358657095,1745340638679,-353.0,0.00049589,60]
[358657097,1745340638689,-353.0,0.00049589,60]
[358657099,1745340638698,-353.0,0.00049589,60]
[358657101,1745340638707,-353.0,0.00049589,60]
[358657103,1745340638718,-353.0,0.00049589,60]
[358657105,1745340638727,-353.0,0.00049589,60]
[358657107,1745340638737,-353.0,0.00049589,60]
[358657109,1745340638747,-353.0,0.00049589,60]
[358657111,1745340638756,-353.0,0.00049589,60]
[358657113,1745340638766,-353.0,0.00049589,60]
[358657115,1745340638775,-353.0,0.00049589,60]
[358657117,1745340638786,-196.0,0.00049589,60]
[358657119,1745340638795,-196.0,0.00049589,60]
[358657120,1745340638805,-196.0,0.00049589,60]
[358657122,1745340638814,-196.0,0.00049589,60]
[358657124,1745340638823,-196.0,0.00049589,60]
[358657126,1745340638833,-196.0,0.00049589,60]
[358657128,1745340638842,-196.0,0.00049589,60]
[358657130,1745340638852,-196.0,0.00049589,60]
[358657132,1745340638862,-196.0,0.00049589,60]
[358657134,1745340638872,-196.0,0.00049589,60]
[358657136,1745340638881,-196.0,0.00049589,60]
[358657138,1745340638890,-196.0,0.00049589,60]
[358657140,1745340638899,-196.0,0.00049589,60]
[358657142,1745340638909,-196.0,0.00049589,60]
[358657144,1745340638918,-256.75651795,0.0004959,28]
[358657146,1745340638928,-256.75651795,0.0004979,28]
[358657148,1745340638938,-210.54720764,0.00049822,30]
[358657150,1745340638948,-150.0,0.00049822,30]
[358657152,1745340638957,-150.0,0.00049822,30]
[358657154,1745340638968,-341.30346501,0.00049822,30]
[358657156,1745340638977,-509.12605429,0.00049822,30]
[358657158,1745340638987,-4457.62987221,0.00049866,22]
[358657160,1745340638996,-14057.4577182,0.0004987,4]
[358657162,1745340639006,-14057.4577182,0.0004989,4]
[358657164,1745340639015,-2000.0,0.000499,2]
[358657166,1745340639026,-165.50385946,0.000499,120]
[358657169,1745340639037,-165.50385946,0.000499,120]
[358657171,1745340639047,-165.50385946,0.000499,120]
[358657172,1745340639056,-150.38,0.0004996,120]
[358657174,1745340639066,-14057.4577182,0.00049969,4]
[358657177,1745340639076,-28114.9154364,0.0004998,4]
[358657179,1745340639086,-14057.4577182,0.0004999,4]
[358657180,1745340639095,-50000.0,0.0005,2]
[358657182,1745340639105,-185.228259,0.0005,120]
[358657184,1745340639114,-151.0,0.0005,120]
[358657186,1745340639124,-185.228259,0.0005,120]
[358657188,1745340639133,-151.0,0.0005,120]
[358657190,1745340639143,-200.0,0.0005,81]
[358657192,1745340639152,-200.0,0.0005,81]
[358657194,1745340639163,-880.29488196,0.0005,2]
[358657197,1745340639172,-332.689051,0.0005,36]
[358657198,1745340639181,-921.0,0.00050051,10]
[358657200,1745340639191,-461.31,0.0005013,2]
[358657202,1745340639200,-437.56,0.00050334,120]
[358657204,1745340639211,-14057.4577182,0.00050339,4]
[358657206,1745340639220,-500.0,0.00050349,120]
[358657208,1745340639230,-2000.0,0.00050349,120]
[358657210,1745340639239,-500.0,0.00050349,120]
[358657212,1745340639249,-500.0,0.00050349,120]
[358657214,1745340639259,-200.0,0.00050349,120]
[358657216,1745340639269,-3744.99375162,0.00050432,15]
[358657218,1745340639278,-169.64063781,0.00050681,120]
[358657220,1745340639288,-252.65,0.00050684,120]
[358657222,1745340639297,-3696.834344,0.00050782,15]
[358657224,1745340639306,-28114.9154364,0.00050969,4]
[358657225,1745340639316,-150.38,0.00050969,120]
[358657227,1745340639327,-28114.9154364,0.0005098,4]
[358657230,1745340639336,-14057.4577182,0.0005099,4]
[358657233,1745340639346,-50000.0,0.00051,2]
[358657234,1745340639356,-200.0,0.00051,85]
[358657236,1745340639366,-200.0,0.00051,85]
[358657238,1745340639375,-1000.0,0.00051012,120]
[358657240,1745340639385,-193.33,0.00051133,120]
[358657242,1745340639394,-4457.62987221,0.00051245,22]
[358657244,1745340639404,-3744.99375162,0.00051286,15]
[358657247,1745340639413,-2350.0,0.00051332,7]
[358657249,1745340639423,-1000.0,0.00051387,120]
[358657250,1745340639432,-408.36175147,0.00051414,120]
[358657252,1745340639442,-50000.0,0.00052,2]
[358657254,1745340639451,-938.24441878,0.00052,120]
[358657256,1745340639461,-184.693628,0.00052,120]
[358657258,1745340639471,-184.693628,0.00052,120]
[358657260,1745340639481,-183.984739,0.00052,120]
[358657262,1745340639490,-183.984739,0.00052,120]
[358657264,1745340639501,-200.0,0.00052,89]
[358657266,1745340639511,-200.0,0.00052,89]
[358657268,1745340639520,-252.65,0.00052054,120]
[358657270,1745340639530,-3744.99375162,0.00052139,15]
[358657272,1745340639540,-461.31,0.00052394,2]
[358657275,1745340639549,-167.02112763,0.000525,48]
[358657277,1745340639560,-2000.0,0.000526,2]
[358657279,1745340639570,-4457.62987221,0.00052624,23]
[358657281,1745340639580,-3696.834344,0.00052741,15]
[358657283,1745340639590,-150.0,0.00052933,120]
[358657285,1745340639599,-150.38,0.0005299,120]
[358657287,1745340639608,-3744.99375162,0.00052993,15]
[358657289,1745340639618,-50000.0,0.00053,2]
[358657291,1745340639627,-151.0,0.00053,120]
[358657293,1745340639637,-200.0,0.00053,92]
[358657295,1745340639646,-200.0,0.00053,92]
[358657297,1745340639655,-948.0,0.00053,120]
[358657299,1745340639666,-237.28,0.000531,51]
[358657301,1745340639675,-237.28,0.000531,51]
[358657303,1745340639685,-237.28,0.000531,51]
[358657305,1745340639694,-237.28,0.000531,51]
[358657307,1745340639703,-237.28,0.000531,51]
[358657309,1745340639713,-237.28,0.000531,51]
[358657311,1745340639722,-237.28,0.000531,51]
[358657313,1745340639731,-237.28,0.000531,51]
[358657315,1745340639741,-237.28,0.000531,51]
[358657317,1745340639750,-237.28,0.000531,51]
[358657319,1745340639760,-237.28,0.000531,51]
[358657321,1745340639769,-237.28,0.000531,51]
[358657323,1745340639779,-237.28,0.000531,51]
[358657325,1745340639789,-237.28,0.000531,51]
[358657327,1745340639798,-237.28,0.000531,51]
[358657329,1745340639807,-237.28,0.000531,51]
[358657331,1745340639817,-237.28,0.000531,51]
[358657333,1745340639826,-237.28,0.000531,51]
[358657335,1745340639836,-237.28,0.000531,51]
[358657337,1745340639845,-237.28,0.000531,51]
[358657339,1745340639854,-237.28,0.000531,51]
[358657341,1745340639864,-237.28,0.000531,51]
[358657343,1745340639874,-237.28,0.000531,51]
[358657345,1745340639883,-237.28,0.000531,51]
[358657347,1745340639894,-1465.947657,0.00053181,120]
[358657349,1745340639903,-200.0,0.00053181,120]
[358657351,1745340639912,-252.65,0.00053424,120]
[358657353,1745340639922,-100000.0,0.000535,120]
[358657354,1745340639931,-1311.08,0.000535,60]
[358657356,1745340639941,-948.0,0.00053699,120]
[358657358,1745340639950,-500.0,0.00053826,60]
[358657360,1745340639960,-3744.99375162,0.00053846,15]
[358657362,1745340639969,-158.90007297,0.00053873,31]
[358657364,1745340639979,-165.85192511,0.00053873,31]
[358657366,1745340639988,-1800.0,0.00053925,60]
[358657368,1745340639998,-1800.0,0.00053952,60]
[358657370,1745340640007,-948.0,0.00053973,120]
[358657372,1745340640017,-150.38,0.0005399,120]
[358657374,1745340640027,-1148.47,0.00053998,30]
[358657376,1745340640037,-50000.0,0.00054,2]
[358657378,1745340640046,-5000.0,0.00054,10]
[358657380,1745340640055,-2165.65669431,0.00054,120]
[358657382,1745340640065,-200.0,0.00054,96]
[358657384,1745340640074,-200.0,0.00054,96]
[358657386,1745340640084,-4457.62987221,0.00054003,24]
[358657388,1745340640093,-500.0,0.00054042,60]
[358657390,1745340640103,-500.0,0.00054048,60]
[358657392,1745340640113,-500.0,0.00054068,60]
[358657394,1745340640122,-800.0,0.00054079,60]
[358657396,1745340640132,-1311.08,0.000541,60]
[358657398,1745340640142,-500.0,0.00054138,60]
[358657400,1745340640152,-1800.0,0.00054139,60]
[358657402,1745340640162,-558.81590879,0.00054172,60]
[358657404,1745340640173,-509.61455883,0.00054172,60]
[358657406,1745340640183,-988.96616283,0.00054229,60]
[358657408,1745340640192,-948.0,0.00054247,120]
[358657410,1745340640202,-800.0,0.00054336,60]
[358657412,1745340640211,-1185.22251983,0.00054337,120]
[358657413,1745340640221,-500.0,0.00054481,60]
[358657415,1745340640230,-4019.51415395,0.000545,120]
[358657417,1745340640239,-1800.0,0.00054515,60]
[358657419,1745340640249,-948.0,0.00054521,120]
[358657421,1745340640259,-150.0,0.00054524,7]
[358657423,1745340640269,-2008.0781,0.00054525,3]
[358657425,1745340640279,-2000.0,0.00054525,3]
[358657427,1745340640288,-200.0,0.00054526,120]
[358657429,1745340640298,-150.0,0.0005453,7]
[358657431,1745340640308,-498.50291036,0.00054582,60]
[358657433,1745340640318,-800.0,0.00054598,60]
[358657435,1745340640327,-461.31,0.00054658,2]
[358657437,1745340640338,-150.0,0.00054668,7]
[358657439,1745340640349,-263.01,0.0005469,120]
[358657441,1745340640358,-185.228259,0.000547,120]
[358657442,1745340640368,-151.0,0.000547,120]
[358657444,1745340640378,-185.228259,0.000547,120]
[358657446,1745340640388,-153.34803,0.000547,120]
[358657448,1745340640398,-1000.0,0.000547,9]
[358657450,1745340640407,-1000.0,0.000547,9]
[358657452,1745340640416,-1000.0,0.000547,9]
[358657453,1745340640425,-1000.0,0.000547,9]
[358657455,1745340640434,-1000.0,0.000547,9]
[358657457,1745340640444,-1000.0,0.000547,9]
[358657459,1745340640454,-1000.0,0.000547,9]